bitfinex/quotes_SOLUSD_20241107
["timestamp","ask_amount","ask_price","bid_price","bid_amount"]
[1731011767705,3.78722615,196.74,196.59,16.055]
[1731011767916,3.78722615,196.73,196.59,16.055]
[1731011768913,3.78722615,196.73,196.6,20.0]
[1731011769618,16.4646,196.76,196.6,20.0]
[1731011769809,27.56433752,196.75,196.6,20.0]
[1731011770008,3.78745352,196.74,196.61,20.0]
[1731011770209,23.776884,196.75,196.61,20.0]
[1731011770526,3.7871351,196.74,196.61,20.0]
[1731011770704,16.4646,196.76,196.61,20.0]
[1731011770905,3.7871419,196.75,196.61,20.0]
[1731011771117,16.4646,196.76,196.61,20.0]
[1731011771118,3.7871419,196.74,196.61,20.0]
[1731011771326,3.7871419,196.73,196.61,20.0]
[1731011771500,23.902374,196.75,196.6,20.0]
[1731011771707,3.78711962,196.74,196.6,20.0]
[1731011771907,23.776884,196.72,196.6,20.0]
[1731011772424,23.902374,196.73,196.6,20.0]
[1731011773317,3.7866787,196.72,196.6,20.0]
[1731011773510,23.902374,196.73,196.59,16.055]
[1731011773703,3.78671011,196.71,196.6,20.0]
[1731011773901,23.902374,196.73,196.6,20.0]
[1731011774124,3.78666582,196.72,196.6,20.0]
[1731011774324,3.78666582,196.71,196.61,23.902374]
[1731011774524,16.4646,196.76,196.62,20.0]
[1731011774716,9.8442939,196.75,196.62,20.0]
[1731011774911,9.8442939,196.74,196.62,20.0]
[1731011775104,3.78626688,196.73,196.62,20.0]
[1731011775305,3.78626688,196.72,196.62,20.0]
[1731011775532,16.4646,196.76,196.62,20.0]
[1731011775826,9.84370154,196.75,196.62,20.0]
[1731011776126,9.84370154,196.74,196.6,20.0]
[1731011776312,3.78603905,196.73,196.6,20.0]
[1731011776517,3.78603905,196.72,196.6,20.0]
[1731011776821,23.902374,196.75,196.6,20.0]
[1731011777215,9.8432342,196.74,196.6,20.0]
[1731011777415,3.78585931,196.73,196.6,20.0]
[1731011777617,3.78585931,196.72,196.6,20.0]
[1731011777834,3.78585931,196.71,196.6,20.0]
[1731011778015,23.902374,196.75,196.6,20.0]
[1731011778213,9.84341613,196.74,196.6,20.0]
[1731011778431,3.78592928,196.73,196.6,20.0]
[1731011778637,3.78592928,196.72,196.6,20.0]
[1731011778927,23.902374,196.75,196.6,20.0]
[1731011779123,9.84340997,196.74,196.6,20.0]
[1731011779430,3.78592691,196.73,196.6,20.0]
[1731011779628,3.78592691,196.72,196.6,20.0]
[1731011779830,3.78592691,196.71,196.6,20.0]
[1731011780032,23.902374,196.75,196.6,20.0]
[1731011780226,9.84435865,196.74,196.6,20.0]
[1731011780531,3.78629179,196.73,196.6,20.0]
[1731011780732,3.78629669,196.72,196.6,20.0]
[1731011781108,3.78646553,196.71,196.6,20.0]
[1731011781313,23.902374,196.75,196.6,20.0]
[1731011781513,9.84481218,196.74,196.6,20.0]
[1731011781711,3.78646622,196.73,196.6,20.0]
[1731011782010,3.78646622,196.72,196.6,20.0]
[1731011782212,3.78646622,196.71,196.6,20.0]
[1731011782415,23.902374,196.75,196.59,16.055]
[1731011782708,9.84510992,196.74,196.59,16.055]
[1731011782915,3.78658074,196.73,196.59,16.055]
[1731011783124,3.78658074,196.72,196.59,16.055]
[1731011783338,3.78658074,196.71,196.59,16.055]
[1731011783525,16.4646,196.76,196.61,20.0]
[1731011783717,9.84560195,196.75,196.61,20.0]
[1731011783916,9.84560195,196.74,196.61,20.0]
[1731011784117,16.4646,196.76,196.61,20.0]
[1731011784318,3.78703464,196.73,196.61,20.0]
[1731011784538,3.78703464,196.72,196.61,20.0]
[1731011784715,3.78703464,196.71,196.61,20.0]
[1731011784914,16.4646,196.76,196.61,20.0]
[1731011785116,9.84661366,196.75,196.61,20.0]
[1731011785339,9.84661366,196.74,196.61,20.0]
[1731011785522,3.7871591,196.73,196.61,20.0]
[1731011785717,3.7871591,196.72,196.61,20.0]
[1731011786037,3.7871591,196.71,196.61,20.0]
[1731011786236,16.4646,196.76,196.61,20.0]
[1731011786550,33.75130449,196.75,196.59,16.055]
[1731011786836,23.902374,196.73,196.59,16.055]
[1731011787041,3.78805019,196.72,196.59,16.055]
[1731011787335,3.78805019,196.71,196.59,16.055]
[1731011787537,16.4646,196.76,196.6,23.902374]
[1731011787746,9.85011238,196.75,196.61,20.0]
[1731011787921,9.85011238,196.74,196.61,20.0]
[1731011788120,3.78850476,196.73,196.61,20.0]
[1731011788327,3.78850476,196.72,196.61,20.0]
[1731011788528,3.78850476,196.71,196.61,20.0]
[1731011788747,16.4646,196.76,196.61,20.0]
[1731011789038,9.85169172,196.75,196.61,20.0]
[1731011789239,9.85169172,196.74,196.61,20.0]
[1731011789447,9.85169172,196.73,196.61,20.0]
[1731011789636,3.7891122,196.72,196.61,20.0]
[1731011789943,3.7891122,196.71,196.61,20.0]
[1731011790244,23.902374,196.69,196.53,21.42511102]
[1731011790443,23.902374,196.67,196.53,15.2444]
[1731011790845,0.12549,196.67,196.53,15.2444]
[1731011791626,23.776884,196.68,196.53,15.2444]
[1731011791833,22.7173,196.69,196.56,20.12549]
[1731011792025,22.1594,196.74,196.61,23.776884]
[1731011792242,0.12549,196.72,196.62,20.0]
[1731011792451,3.79221172,196.71,196.62,20.0]
[1731011792643,3.79221172,196.7,196.62,20.0]
[1731011792942,3.79221172,196.69,196.58,20.0]
[1731011793254,23.902374,196.72,196.58,20.0]
[1731011793548,3.79330795,196.71,196.58,20.0]
[1731011793754,3.79330795,196.7,196.58,20.0]
[1731011794044,3.79330795,196.69,196.58,20.0]
[1731011794249,3.79330795,196.68,196.58,20.0]
[1731011794424,23.776884,196.72,196.58,20.0]
[1731011794819,9.86616751,196.71,196.58,20.0]
[1731011795025,3.79467981,196.7,196.58,20.0]
[1731011795238,3.79467981,196.69,196.58,20.0]
[1731011795442,3.79467981,196.68,196.58,20.0]
[1731011795745,23.776884,196.72,196.58,20.0]
[1731011795948,9.87032756,196.71,196.58,20.0]
[1731011796134,3.79627983,196.7,196.58,20.0]
[1731011796342,3.79627983,196.69,196.58,20.0]
[1731011796562,3.79627983,196.68,196.58,20.0]
[1731011796847,22.02018974,196.73,196.58,20.0]
[1731011797034,9.87034173,196.72,196.58,20.0]
[1731011797345,22.02018974,196.73,196.58,20.0]
[1731011797346,9.87034173,196.71,196.58,20.0]
[1731011797545,3.79625573,196.7,196.59,0.12549]
[1731011797863,3.79625608,196.69,196.6,20.0]
[1731011798047,3.79625608,196.68,196.6,20.0]
[1731011798255,22.02018974,196.73,196.6,20.0]
[1731011798550,9.87013288,196.72,196.6,20.0]
[1731011798726,9.87013288,196.71,196.6,20.0]
[1731011798926,3.79620495,196.7,196.58,20.0]
[1731011799144,3.79620495,196.69,196.58,20.0]
[1731011799338,3.79620495,196.68,196.58,20.0]
[1731011799649,23.776884,196.72,196.58,20.0]
[1731011799831,23.902374,196.7,196.58,20.0]
[1731011800028,3.7961522,196.69,196.58,20.0]
[1731011800236,3.7961522,196.68,196.58,20.0]
[1731011800437,23.902374,196.7,196.58,20.0]
[1731011800651,3.79612423,196.69,196.57,16.6187]
[1731011800950,23.902374,196.7,196.57,16.6187]
[1731011800951,3.79612423,196.68,196.57,16.6187]
[1731011801150,3.79612423,196.67,196.57,16.6187]
[1731011801328,23.902374,196.7,196.57,16.6187]
[1731011801749,3.79629423,196.69,196.57,16.6187]
[1731011801935,3.79629423,196.68,196.57,16.6187]
[1731011802137,3.79629423,196.67,196.58,20.0]
[1731011802348,23.902374,196.71,196.56,1.64069627]
[1731011802533,9.86989986,196.7,196.54,0.12549]
[1731011802856,27.57299933,196.69,196.55,20.0]
[1731011803031,3.79611533,196.68,196.55,20.0]
[1731011803227,3.79611533,196.67,196.53,21.64236443]
[1731011803443,23.776884,196.69,196.55,20.0]
[1731011803634,3.79605788,196.68,196.55,20.0]
[1731011803844,3.79605788,196.67,196.55,20.0]
[1731011804031,23.776884,196.69,196.55,20.0]
[1731011804233,3.79601699,196.68,196.55,20.0]
[1731011804446,3.79601699,196.67,196.57,20.0]
[1731011804751,20.326877,196.73,196.6,20.12549]
[1731011804936,9.8693101,196.72,196.6,20.12549]
[1731011805150,9.8693101,196.71,196.6,20.12549]
[1731011805446,9.86937925,196.7,196.62,20.0]
[1731011805746,3.7958885,196.69,196.62,20.0]
[1731011805939,3.7958885,196.69,196.6,0.12549]
[1731011805940,3.7958885,196.68,196.6,20.0]
[1731011806156,3.7958885,196.67,196.6,20.0]
[1731011806330,3.7958885,196.66,196.6,20.0]
[1731011806531,23.776884,196.7,196.6,20.0]
[1731011806738,0.12549,196.71,196.6,20.0]
[1731011806739,9.87049935,196.69,196.6,20.0]
[1731011807047,3.7963459,196.68,196.6,20.0]
[1731011807348,23.776884,196.72,196.6,20.0]
[1731011807548,9.86996847,196.71,196.6,20.0]
[1731011807754,3.79614172,196.7,196.6,20.0]
[1731011808053,23.776884,196.72,196.6,20.0]
[1731011808238,9.86999106,196.71,196.6,20.0]
[1731011808439,3.79614459,196.7,196.6,20.0]
[1731011808640,3.79614459,196.69,196.6,20.0]
[1731011808836,23.776884,196.72,196.6,20.0]
[1731011809041,9.8700026,196.71,196.6,20.0]
[1731011809238,3.79615613,196.7,196.6,20.0]
[1731011809453,3.79615613,196.69,196.6,20.0]
[1731011809755,20.326877,196.73,196.62,20.0]
[1731011810057,9.87018149,196.72,196.62,20.0]
[1731011810229,3.79622365,196.71,196.62,20.0]
[1731011810430,3.79622365,196.7,196.62,20.0]
[1731011811044,3.79622365,196.69,196.6,20.0]
[1731011811257,3.79622365,196.68,196.6,20.0]
[1731011811440,20.326877,196.73,196.6,20.0]
[1731011811644,9.88359056,196.72,196.6,20.0]
[1731011811845,3.80139199,196.71,196.6,20.0]
[1731011812151,3.80139199,196.7,196.6,20.0]
[1731011812360,3.80139199,196.69,196.6,20.0]
[1731011812539,3.80139199,196.68,196.62,20.0]
[1731011812739,20.326877,196.73,196.62,20.0]
[1731011813060,9.8849764,196.72,196.62,20.0]
[1731011813357,9.8849764,196.71,196.62,20.0]
[1731011813556,9.8849764,196.7,196.65,23.902374]
[1731011813754,3.801914,196.69,196.66,20.0]
[1731011814053,2.53698081,196.75,196.69,23.902374]
[1731011814358,6.0451,196.84,196.69,23.902374]
[1731011814359,3.79872363,196.74,196.71,23.902374]
[1731011814651,2.53633429,196.81,196.72,20.0]
[1731011814844,9.87637141,196.8,196.72,20.0]
[1731011815052,6.07776702,196.79,196.72,20.0]
[1731011815255,3.79860439,196.79,196.7,20.0]
[1731011815556,3.79860439,196.78,196.7,20.0]
[1731011815756,3.79860439,196.77,196.7,20.0]
[1731011815955,6.335654,196.82,196.7,20.0]
[1731011815956,3.79860439,196.76,196.7,20.0]
[1731011816254,6.335654,196.82,196.72,20.0]
[1731011816452,3.79281081,196.81,196.72,20.0]
[1731011816645,6.335654,196.82,196.72,20.0]
[1731011816849,6.335654,196.82,196.71,20.0]
[1731011820941,15.5472,196.85,196.73,20.0]
[1731011821137,15.5472,196.83,196.73,20.0]
[1731011821760,15.5472,196.83,196.7,1.63046045]
[1731011821931,15.5472,196.83,196.68,20.0]
[1731011822259,0.12549,196.82,196.67,16.4246]
[1731011823551,0.12549,196.82,196.68,43.776884]
[1731011823862,15.5472,196.83,196.68,43.776884]
[1731011824161,0.12549,196.82,196.68,43.776884]
[1731011824547,15.5472,196.83,196.69,0.12549]
[1731011824952,15.5472,196.83,196.72,20.0]
[1731011825553,0.12549,196.82,196.72,20.0]
[1731011825964,15.5472,196.83,196.72,20.0]
[1731011826350,0.12549,196.82,196.72,20.0]
[1731011826551,15.5472,196.83,196.72,20.0]
[1731011827763,0.12549,196.82,196.72,20.0]
[1731011827965,0.12549,196.82,196.71,5.312818]
[1731011828550,15.5472,196.83,196.71,5.312818]
[1731011828868,23.902374,196.82,196.71,5.312818]
[1731011829043,23.776884,196.8,196.71,5.312818]
[1731011829246,0.12549,196.79,196.71,5.312818]
[1731011831070,6.3488,196.81,196.71,5.312818]
[1731011832948,8.00555719,196.81,196.71,5.312818]
[1731011833980,6.3488,196.81,196.71,5.312818]
[1731011834153,15.5472,196.83,196.72,20.0]
[1731011835664,15.5472,196.83,196.74,20.0]
[1731011836048,15.5472,196.83,196.72,20.0]
[1731011836248,15.5472,196.83,196.72,43.776884]
[1731011838162,23.902374,196.82,196.71,5.312818]
[1731011838661,0.12549,196.82,196.71,5.312818]
[1731011839166,23.902374,196.82,196.71,5.312818]
[1731011839374,23.902374,196.8,196.71,5.312818]
[1731011840161,0.12549,196.78,196.71,5.312818]
[1731011841876,0.12549,196.76,196.71,5.312818]
[1731011843473,16.5768,196.77,196.71,5.312818]
[1731011843960,6.5772,196.79,196.71,5.312818]
[1731011844154,31.9792065,196.82,196.71,5.312818]
[1731011844155,16.46,196.82,196.71,5.312818]
[1731011844554,3.78114994,196.81,196.72,59.776384]
[1731011844768,15.5472,196.83,196.72,59.776384]
[1731011846573,1.7009269,196.88,196.72,59.776384]
[1731011846876,19.32786919,196.86,196.72,59.776384]
[1731011847077,15.5472,196.86,196.72,59.776384]
[1731011848460,15.5472,196.86,196.73,0.12549]
[1731011848772,0.12549,196.85,196.72,65.95709502]
[1731011848972,0.12549,196.85,196.72,15.9995]
[1731011849180,23.902374,196.85,196.72,15.9995]
[1731011849563,0.12549,196.82,196.71,5.312818]
[1731011850464,0.12549,196.8,196.71,5.312818]
[1731011850793,16.49039,196.8,196.71,5.312818]
[1731011851266,16.3649,196.8,196.71,5.312818]
[1731011853885,1.68164183,196.84,196.72,20.0]
[1731011854178,16.3649,196.85,196.72,20.0]
[1731011854386,3.78718531,196.84,196.72,20.0]
[1731011854687,0.12549,196.84,196.72,20.0]
[1731011856078,0.12549,196.84,196.71,5.312818]
[1731011856079,23.902374,196.82,196.71,5.312818]
[1731011856261,23.902374,196.8,196.71,5.312818]
[1731011856464,3.78866226,196.79,196.71,5.312818]
[1731011856674,23.776884,196.81,196.71,5.312818]
[1731011856885,0.12549,196.79,196.71,5.312818]
[1731011857184,3.7904491,196.78,196.71,5.312818]
[1731011858274,3.7904491,196.77,196.71,5.312818]
[1731011858590,3.79382761,196.76,196.71,5.312818]
[1731011858770,3.79382761,196.75,196.71,5.312818]
[1731011859085,3.7959053,196.74,196.71,5.312818]
[1731011859286,0.12549,196.76,196.71,5.312818]
[1731011859487,3.79482551,196.75,196.71,5.312818]
[1731011859673,15.9575,196.76,196.71,5.312818]
[1731011859873,0.12549,196.73,196.71,5.312818]
[1731011860486,6.2574,196.74,196.71,5.312818]
[1731011861381,0.12549,196.73,196.71,5.312818]
[1731011861766,23.902374,196.73,196.71,5.312818]
[1731011862574,0.12549,196.73,196.71,5.312818]
[1731011862906,23.902374,196.73,196.71,1.67384746]
[1731011863183,27.69445915,196.72,196.71,1.67384746]
[1731011863394,23.902374,196.71,196.6,16.0043]
[1731011863579,23.902374,196.71,196.48,22.6283]
[1731011863773,23.902374,196.69,196.49,6.18071102]
[1731011864393,23.902374,196.69,196.5,0.12549]
[1731011864596,23.902374,196.69,196.49,6.18071102]
[1731011864797,23.902374,196.69,196.5,6.18071102]
[1731011865097,23.902374,196.69,196.51,20.0]
[1731011865282,23.902374,196.69,196.51,23.776884]
[1731011865470,23.902374,196.69,196.51,29.95759502]
[1731011866492,6.584,196.7,196.54,0.12549]
[1731011866692,6.584,196.7,196.56,43.902374]
[1731011866896,6.2574,196.74,196.58,43.776884]
[1731011867188,0.12549,196.73,196.58,43.776884]
[1731011867985,6.2574,196.74,196.58,43.776884]
[1731011868586,0.12549,196.73,196.58,43.776884]
[1731011871372,0.12549,196.73,196.59,0.12549]
[1731011871590,6.2574,196.74,196.61,23.21029]
[1731011871795,6.2574,196.74,196.62,43.776884]
[1731011872496,6.2574,196.74,196.63,0.12549]
[1731011873082,6.2574,196.74,196.65,23.902374]
[1731011873283,6.2574,196.74,196.66,20.0]
[1731011876306,6.6328,196.84,196.68,20.0]
[1731011876481,23.776884,196.83,196.68,20.0]
[1731011876796,20.317263,196.8,196.68,20.0]
[1731011877695,20.317263,196.8,196.7,20.0]
[1731011878694,20.317263,196.8,196.68,20.0]
[1731011882091,20.317263,196.8,196.71,23.776884]
[1731011882285,20.317263,196.8,196.72,20.0]
[1731011882682,20.317263,196.8,196.69,20.0]
[1731011883293,0.12549,196.79,196.69,20.0]
[1731011885301,23.902374,196.79,196.67,15.1787]
[1731011886619,23.902374,196.79,196.68,20.0]
[1731011887802,25.60740542,196.79,196.68,20.0]
[1731011890110,1.83052142,196.79,196.68,20.0]
[1731011892616,20.317263,196.8,196.68,20.0]
[1731011892789,0.12549,196.79,196.68,20.0]
[1731011893701,23.902374,196.79,196.68,20.0]
[1731011894400,23.902374,196.79,196.67,15.1787]
[1731011896707,39.4215805,196.79,196.67,15.1787]
[1731011897009,23.902374,196.79,196.67,15.1787]
[1731011898095,0.12549,196.75,196.62,15.318]
[1731011898290,23.902374,196.75,196.62,15.318]
[1731011899423,23.902374,196.75,196.63,20.0]
[1731011901518,33.80141327,196.73,196.58,6.18071102]
[1731011901689,33.80141327,196.73,196.57,15.5522]
[1731011902710,33.80141327,196.73,196.58,20.0]
[1731011903597,39.38234705,196.73,196.58,20.0]
[1731011904705,23.902374,196.73,196.58,20.0]
[1731011905622,23.902374,196.71,196.58,20.0]
[1731011905908,0.12549,196.72,196.58,20.0]
[1731011906118,0.12549,196.72,196.58,21.62654479]
[1731011907719,1.6472723,196.75,196.61,0.12549]
[1731011908017,3.78609309,196.74,196.62,20.0]
[1731011908209,0.12549,196.75,196.62,20.0]
[1731011908408,3.78601294,196.74,196.62,20.0]
[1731011908611,8.25864772,196.76,196.62,20.0]
[1731011908816,3.78602325,196.75,196.62,20.0]
[1731011909112,3.78602325,196.74,196.62,20.0]
[1731011909314,0.12549,196.75,196.62,20.0]
[1731011909501,3.78627632,196.74,196.62,20.0]
[1731011909696,23.776884,196.75,196.58,21.62654479]
[1731011909916,0.12549,196.72,196.58,20.0]
[1731011910493,0.12549,196.72,196.57,15.5522]
[1731011911915,0.12549,196.72,196.58,20.0]
[1731011912118,23.902374,196.7,196.58,20.0]
[1731011916401,15.5522,196.71,196.58,20.0]
[1731011917404,3.78972133,196.7,196.59,23.902374]
[1731011917602,8.25864772,196.76,196.6,20.0]
[1731011917819,15.5522,196.74,196.6,20.0]
[1731011918012,9.85277392,196.73,196.6,20.0]
[1731011918319,15.5522,196.74,196.6,20.0]
[1731011918320,3.78952843,196.72,196.6,20.0]
[1731011918503,3.78952843,196.71,196.6,20.0]
[1731011918706,3.78952843,196.7,196.6,20.0]
[1731011919010,15.5522,196.74,196.6,20.0]
[1731011919318,9.85201665,196.73,196.6,20.0]
[1731011919523,3.78923717,196.72,196.6,20.0]
[1731011919717,3.78923717,196.71,196.6,20.0]
[1731011919917,3.78923717,196.7,196.6,20.0]
[1731011920214,15.5522,196.74,196.6,20.0]
[1731011920520,9.85079553,196.73,196.6,20.0]
[1731011920723,3.78876751,196.72,196.6,20.0]
[1731011921029,3.78876751,196.71,196.63,43.902374]
[1731011921206,15.5522,196.79,196.65,0.12549]
[1731011921405,9.84919417,196.78,196.66,16.011]
[1731011921714,3.7881516,196.77,196.67,43.902374]
[1731011921916,3.7881516,196.76,196.67,43.902374]
[1731011922114,6.6367,196.82,196.67,43.902374]
[1731011922310,9.84803918,196.81,196.67,43.902374]
[1731011922517,9.84803918,196.8,196.67,43.902374]
[1731011922731,9.84803918,196.79,196.67,43.902374]
[1731011922904,3.78770738,196.78,196.67,43.902374]
[1731011923115,3.78770738,196.77,196.67,43.902374]
[1731011923305,6.6367,196.82,196.67,43.902374]
[1731011923516,9.84774404,196.81,196.67,43.902374]
[1731011923724,9.84774404,196.8,196.67,43.902374]
[1731011924026,3.78759386,196.79,196.67,43.902374]
[1731011924204,3.78759386,196.78,196.67,43.902374]
[1731011924405,6.6367,196.82,196.67,43.902374]
[1731011924721,9.84747125,196.81,196.67,43.902374]
[1731011925024,9.84747125,196.8,196.67,43.902374]
[1731011925218,3.78749243,196.79,196.67,43.902374]
[1731011925440,3.78749243,196.78,196.67,50.08308502]
[1731011925628,3.78749243,196.77,196.67,50.08308502]
[1731011925834,9.17317017,196.82,196.67,50.08308502]
[1731011926021,9.84750538,196.81,196.67,50.08308502]
[1731011926332,3.78750207,196.8,196.67,50.08308502]
[1731011926519,3.78750207,196.79,196.67,50.08308502]
[1731011926828,6.6367,196.82,196.67,50.08308502]
[1731011927014,3.78667582,196.81,196.67,50.08308502]
[1731011927224,3.78667582,196.8,196.67,50.08308502]
[1731011927422,3.78667582,196.79,196.67,50.08308502]
[1731011927612,15.6497,196.86,196.69,0.12549]
[1731011927806,20.314541,196.84,196.69,43.902374]
[1731011928034,9.84462709,196.83,196.69,43.902374]
[1731011928214,9.84462709,196.82,196.69,43.902374]
[1731011928417,3.78639503,196.81,196.69,43.902374]
[1731011928719,3.78639503,196.8,196.69,43.902374]
[1731011928928,3.78639503,196.79,196.69,43.902374]
[1731011929116,20.314541,196.84,196.69,43.902374]
[1731011929317,9.84442268,196.83,196.69,43.902374]
[1731011929632,9.84442268,196.82,196.69,43.902374]
[1731011929815,3.78631641,196.81,196.69,43.902374]
[1731011930017,3.78631641,196.8,196.69,43.902374]
[1731011930323,20.314541,196.84,196.69,43.902374]
[1731011930524,0.12549,196.79,196.67,1.68795417]
[1731011930726,3.78563711,196.78,196.66,16.011]
[1731011930918,0.12549,196.79,196.66,16.011]
[1731011931122,3.78603978,196.78,196.66,16.011]
[1731011931309,6.0604,196.8,196.66,16.011]
[1731011931310,5.28010088,196.77,196.67,0.12549]
[1731011931835,5.28010088,196.77,196.68,20.0]
[1731011934812,5.28010088,196.77,196.69,23.902374]
[1731011935018,6.0604,196.85,196.7,20.0]
[1731011935315,9.841206,196.83,196.7,20.0]
[1731011935528,9.841206,196.82,196.7,20.0]
[1731011935834,3.78507923,196.81,196.7,20.0]
[1731011936034,3.78507923,196.8,196.7,20.0]
[1731011936243,3.78507923,196.79,196.7,20.0]
[1731011936533,20.314541,196.84,196.7,20.0]
[1731011936733,9.83997461,196.83,196.7,20.0]
[1731011936929,9.83997461,196.82,196.7,20.0]
[1731011937124,9.83997461,196.82,196.68,1.69886011]
[1731011937125,3.78460562,196.81,196.68,1.69886011]
[1731011937436,3.91009562,196.8,196.66,16.011]
[1731011937634,3.78460562,196.79,196.66,16.011]
[1731011937945,23.902374,196.82,196.66,16.011]
[1731011938146,5.27899502,196.78,196.66,16.011]
[1731011938441,23.902374,196.82,196.66,16.011]
[1731011938619,5.27894267,196.77,196.67,20.0]
[1731011938823,23.902374,196.82,196.67,20.0]
[1731011939134,5.27903678,196.77,196.67,20.0]
[1731011939333,20.314541,196.84,196.69,20.0]
[1731011939534,9.83875963,196.83,196.69,20.0]
[1731011939739,0.12549,196.81,196.69,20.0]
[1731011939946,3.78438139,196.8,196.67,20.0]
[1731011940124,9.8394046,196.8,196.67,20.0]
[1731011940317,0.12549,196.81,196.67,20.0]
[1731011940318,3.78438139,196.79,196.67,20.0]
[1731011940519,42.95895539,196.78,196.66,17.68439718]
[1731011940828,3.78438139,196.77,196.66,17.68439718]
[1731011941619,15.2722,196.78,196.67,20.12549]
[1731011941822,39.049084,196.83,196.67,26.30620102]
[1731011942029,0.12549,196.81,196.67,26.30620102]
[1731011942227,9.83874196,196.82,196.67,26.30620102]
[1731011942228,3.78413152,196.8,196.68,23.776884]
[1731011942415,3.78413152,196.8,196.69,20.0]
[1731011942737,15.2722,196.83,196.69,20.0]
[1731011942924,9.83812988,196.82,196.69,20.0]
[1731011943127,3.78389611,196.81,196.69,20.0]
[1731011943327,3.78367349,196.8,196.69,20.0]
[1731011943526,15.2722,196.83,196.69,20.0]
[1731011943824,9.83750054,196.82,196.69,20.0]
[1731011944037,15.2722,196.83,196.69,20.0]
[1731011944038,3.78365405,196.81,196.7,23.902374]
[1731011944218,15.2722,196.83,196.71,20.0]
[1731011944418,3.78276411,196.82,196.71,20.0]
[1731011944619,3.78276411,196.81,196.71,20.0]
[1731011944827,20.314541,196.84,196.71,20.0]
[1731011945132,3.78272387,196.83,196.71,20.0]
[1731011945335,3.78272387,196.82,196.71,20.0]
[1731011945531,3.78272387,196.81,196.71,20.0]
[1731011945741,33.80070575,196.83,196.69,20.0]
[1731011946031,0.12549,196.81,196.67,0.12549]
[1731011946234,3.78241197,196.8,196.67,0.12549]
[1731011947345,3.78241197,196.8,196.67,20.12549]
[1731011947546,39.775184,196.79,196.69,20.0]
[1731011947851,39.775184,196.79,196.64,6.18071102]
[1731011947852,6.589,196.78,196.64,6.18071102]
[1731011948037,6.589,196.78,196.65,0.12549]
[1731011948352,15.9983,196.79,196.66,6.18071102]
[1731011948639,15.9983,196.79,196.67,0.12549]
[1731011949360,6.1615,196.83,196.69,35.8293]
[1731011949645,9.83517467,196.82,196.69,35.8293]
[1731011949827,3.78275949,196.81,196.69,35.8293]
[1731011950024,3.78277584,196.8,196.69,35.8293]
[1731011950225,3.78277584,196.79,196.69,35.8293]
[1731011950445,5.27940291,196.81,196.69,35.8293]
[1731011950646,3.78312101,196.8,196.69,35.8293]
[1731011950845,3.78312101,196.79,196.69,35.8293]
[1731011951052,5.27940291,196.81,196.69,35.8293]
[1731011951230,3.78324405,196.8,196.69,35.8293]
[1731011951542,3.78324405,196.79,196.69,37.50535856]
[1731011951726,5.27940291,196.81,196.69,37.50535856]
[1731011951928,3.78340266,196.8,196.69,37.50535856]
[1731011952246,3.78340266,196.79,196.69,37.50535856]
[1731011952424,5.27940291,196.81,196.69,37.50535856]
[1731011952749,3.78382996,196.8,196.69,37.50535856]
[1731011953044,3.78382996,196.79,196.69,37.50535856]
[1731011953250,5.27940291,196.81,196.69,37.50535856]
[1731011953435,3.78422494,196.8,196.69,37.50535856]
[1731011953635,3.78422494,196.79,196.69,37.50535856]
[1731011953835,5.27940291,196.81,196.69,37.50535856]
[1731011954048,3.78422354,196.8,196.69,37.50535856]
[1731011954242,3.78422354,196.79,196.69,37.50535856]